Workbook

Sheet DailyConfig
A1: ID[csknu] | B1: name[ct] | C1: map[ct] | D1: background[ct] | E1: baseHP[cn] | F1: baseTex[ct] | G1: destype[csn] | H1: diff[csn] | I1: des[ct] | J1: reqlevel[csn] | K1: front[csn] | L1: generate[csna] | M1: reward[csn] | N1: clearance[csn] | O1: show[cna] | P1: num[cna] | Q1: type[csn] | R1: parameter[csn]
A2: 日常关卡 | B2: 关卡名称 | C2: 关卡地图 | D2: 背景图 | E2: 基地血量 | F2: 基地资源 | G2: 关卡类型 | H2: 难度 | I2: 难度描述 | J2: 队伍等级条件 | K2: 前置关卡 | L2: 怪物波次 | M2: 杀怪奖励 | N2: 挑战奖励/概率 | O2: 掉落展示 | P2: 展示数量 | Q2: 通关类型 | R2: 通关参数
A3: 101 | B3: 金币矿洞 | C3: yanjiang_1 | D3: fb_01 | E3: 9999 | F3: yanjiang_blue_1 | G3: 3 | H3: 1 | I3: 简单难度 | J3: 10 | K3: 0 | L3: 10101^10102^10103^10104 | M3: 90001 | N3: 0 | O3: 100001^140003 | P3: 10000^150 | Q3: 3 | R3: 240
A4: 102 | B4: 金币矿洞 | C4: yanjiang_1 | D4: fb_01 | E4: 9999 | F4: yanjiang_blue_1 | G4: 3 | H4: 2 | I4: 困难难度 | J4: 20 | K4: 101 | L4: 10201^10202^10203^10204 | M4: 90002 | N4: 0 | O4: 100001^140003 | P4: 15000^150 | Q4: 3 | R4: 240
A5: 103 | B5: 金币矿洞 | C5: yanjiang_1 | D5: fb_01 | E5: 9999 | F5: yanjiang_blue_1 | G5: 3 | H5: 3 | I5: 精英难度 | J5: 30 | K5: 102 | L5: 10301^10302^10303^10304 | M5: 90003 | N5: 0 | O5: 100001^140003 | P5: 20000^150 | Q5: 3 | R5: 240
A6: 104 | B6: 金币矿洞 | C6: yanjiang_1 | D6: fb_01 | E6: 9999 | F6: yanjiang_blue_1 | G6: 3 | H6: 4 | I6: 大师难度 | J6: 40 | K6: 103 | L6: 10401^10402^10403^10404 | M6: 90004 | N6: 0 | O6: 100001^140003 | P6: 28000^150 | Q6: 3 | R6: 240
A7: 105 | B7: 金币矿洞 | C7: yanjiang_1 | D7: fb_01 | E7: 9999 | F7: yanjiang_blue_1 | G7: 3 | H7: 5 | I7: 史诗难度 | J7: 50 | K7: 104 | L7: 10501^10502^10503^10504 | M7: 90005 | N7: 0 | O7: 100001^140003 | P7: 40000^150 | Q7: 3 | R7: 240
A8: 106 | B8: 金币矿洞 | C8: yanjiang_1 | D8: fb_01 | E8: 9999 | F8: yanjiang_blue_1 | G8: 3 | H8: 6 | I8: 噩梦难度 | J8: 60 | K8: 105 | L8: 10601^10602^10603^10604 | M8: 90006 | N8: 0 | O8: 100001^140003 | P8: 55000^150 | Q8: 3 | R8: 240
A9: 201 | B9: 经验绿洲 | C9: senlin_1 | D9: fb_02 | E9: 9999 | F9: senlin_blue_1 | G9: 4 | H9: 1 | I9: 简单难度 | J9: 10 | K9: 0 | L9: 20101^20102^20103^20104 | M9: 90011 | N9: 0 | O9: 140004^140003 | P9: 2250^150 | Q9: 3 | R9: 240
A10: 202 | B10: 经验绿洲 | C10: senlin_1 | D10: fb_02 | E10: 9999 | F10: senlin_blue_1 | G10: 4 | H10: 2 | I10: 困难难度 | J10: 20 | K10: 201 | L10: 20201^20202^20203^20204 | M10: 90012 | N10: 0 | O10: 140004^140003 | P10: 5000^150 | Q10: 3 | R10: 240
A11: 203 | B11: 经验绿洲 | C11: senlin_1 | D11: fb_02 | E11: 9999 | F11: senlin_blue_1 | G11: 4 | H11: 3 | I11: 精英难度 | J11: 30 | K11: 202 | L11: 20301^20302^20303^20304 | M11: 90013 | N11: 0 | O11: 140004^140003 | P11: 11500^150 | Q11: 3 | R11: 240
A12: 204 | B12: 经验绿洲 | C12: senlin_1 | D12: fb_02 | E12: 9999 | F12: senlin_blue_1 | G12: 4 | H12: 4 | I12: 大师难度 | J12: 40 | K12: 203 | L12: 20401^20402^20403^20404 | M12: 90014 | N12: 0 | O12: 140004^140003 | P12: 23000^150 | Q12: 3 | R12: 240
A13: 205 | B13: 经验绿洲 | C13: senlin_1 | D13: fb_02 | E13: 9999 | F13: senlin_blue_1 | G13: 4 | H13: 5 | I13: 史诗难度 | J13: 50 | K13: 204 | L13: 20501^20502^20503^20504 | M13: 90015 | N13: 0 | O13: 140004^140003 | P13: 46000^150 | Q13: 3 | R13: 240
A14: 206 | B14: 经验绿洲 | C14: senlin_1 | D14: fb_02 | E14: 9999 | F14: senlin_blue_1 | G14: 4 | H14: 6 | I14: 噩梦难度 | J14: 60 | K14: 205 | L14: 20601^20602^20603^20604 | M14: 90016 | N14: 0 | O14: 140004^140003 | P14: 92000^150 | Q14: 3 | R14: 240
A15: 301 | B15: 冰封祭坛 | C15: xuedi_1 | D15: fb_03 | E15: 9999 | F15: xuedi_blue_1 | G15: 5 | H15: 1 | I15: 简单难度 | J15: 10 | K15: 0 | L15: 30101^30102^30103^30104 | M15: 90021 | N15: 90020 | O15: 140059^140005^140003 | P15: 1^150^150 | Q15: 3 | R15: 240
A16: 302 | B16: 冰封祭坛 | C16: xuedi_1 | D16: fb_03 | E16: 9999 | F16: xuedi_blue_1 | G16: 5 | H16: 2 | I16: 困难难度 | J16: 20 | K16: 301 | L16: 30201^30202^30203^30204 | M16: 90022 | N16: 90020 | O16: 140059^140005^140003 | P16: 1^450^150 | Q16: 3 | R16: 240
A17: 303 | B17: 冰封祭坛 | C17: xuedi_1 | D17: fb_03 | E17: 9999 | F17: xuedi_blue_1 | G17: 5 | H17: 3 | I17: 精英难度 | J17: 30 | K17: 302 | L17: 30301^30302^30303^30304 | M17: 90023 | N17: 90020 | O17: 140059^140005^140003 | P17: 1^960^150 | Q17: 3 | R17: 240
A18: 304 | B18: 冰封祭坛 | C18: xuedi_1 | D18: fb_03 | E18: 9999 | F18: xuedi_blue_1 | G18: 5 | H18: 4 | I18: 大师难度 | J18: 40 | K18: 303 | L18: 30401^30402^30403^30404 | M18: 90024 | N18: 90020 | O18: 140059^140005^140003 | P18: 1^1600^150 | Q18: 3 | R18: 240
A19: 305 | B19: 冰封祭坛 | C19: xuedi_1 | D19: fb_03 | E19: 9999 | F19: xuedi_blue_1 | G19: 5 | H19: 5 | I19: 史诗难度 | J19: 50 | K19: 304 | L19: 30501^30502^30503^30504 | M19: 90025 | N19: 90020 | O19: 140059^140005^140003 | P19: 1^2240^150 | Q19: 3 | R19: 240
A20: 306 | B20: 冰封祭坛 | C20: xuedi_1 | D20: fb_03 | E20: 9999 | F20: xuedi_blue_1 | G20: 5 | H20: 6 | I20: 噩梦难度 | J20: 60 | K20: 305 | L20: 30601^30602^30603^30604 | M20: 90026 | N20: 90020 | O20: 140059^140005^140003 | P20: 1^2880^150 | Q20: 3 | R20: 240

Sheet Sheet1
J1: 次数 | K1: 怪物数量 | L1: 单个掉落
B2: 单卡升120 | D2: 五个英雄 | E2: 首通产出 | H2: 20 | I2: 难度1 | J2: 2 | K2: 100 | L2: 300 | M2: =J2*K2*L2 -> 60000 | O2: =M2*30 -> 1800000 | P2: =O2/$D$14 -> 0.002406183249
B3: 需经验石 | D3: 升级 | E3: 占比 | H3: 25 | I3: 难度2 | J3: 2 | K3: 100 | L3: 400 | M3: =J3*K3*L3 -> 80000 | O3: =M3*30 -> 2400000 | P3: =O3/$D$14 -> 0.003208244332
B4: 10707550 | C4: 5 | D4: =B4*C4 -> 53537750 | H4: 40 | I4: 难度3 | J4: 2 | K4: 100 | L4: 500 | M4: 100000 | O4: 3000000 | P4: 0.004010305416
H5: 60 | I5: 难度4 | J5: 2 | K5: 100 | L5: 700 | M5: 140000 | O5: 4200000 | P5: 0.005614427582
B6: 单卡升120 | H6: 90 | I6: 难度5 | J6: 2 | K6: 100 | L6: 900 | M6: 180000 | O6: 5400000 | P6: 0.007218549748
B7: 需金币 | H7: 110 | I7: 难度6 | J7: 2 | K7: 100 | L7: 1200 | M7: 240000 | O7: =M7*30 -> 7200000 | P7: =O7/$D$14 -> 0.009624732997
B8: 29981140 | C8: 5 | D8: =B8*C8 -> 149905700
B10: 单件装备120 | I10: 难度1 | J10: 2 | K10: 100 | L10: 20 | M10: =J10*K10*L10 -> 4000 | O10: =M10*30 -> 120000 | P10: =O10/$D$4 -> 0.002241409099
B11: 需金币 | I11: 难度2 | J11: 2 | K11: 100 | L11: 30 | M11: =J11*K11*L11 -> 6000 | O11: =M11*30 -> 180000 | P11: =O11/$D$4 -> 0.003362113649
B12: 19938900 | C12: 30 | D12: =B12*C12 -> 598167000 | I12: 难度3 | J12: 2 | K12: 100 | L12: 50 | M12: 10000 | O12: 300000 | P12: 0.005603522748
I13: 难度4 | J13: 2 | K13: 100 | L13: 70 | M13: 14000 | O13: 420000 | P13: 0.007844931847
C14: 总计 | D14: =D12+D8 -> 748072700 | E14: 0.05 | I14: 难度5 | J14: 2 | K14: 100 | L14: 90 | M14: 18000 | O14: 540000 | P14: 0.01008634095
I15: 难度6 | J15: 2 | K15: 100 | L15: 110 | M15: 22000 | O15: 660000 | P15: 0.01232775005
I17: 难度1 | J17: 2 | K17: 100 | L17: 5 | M17: =J17*K17*L17 -> 1000 | O17: =M17*30 -> 30000 | P17: =O17/$B$4 -> 0.002801761374
I18: 难度2 | J18: 2 | K18: 100 | L18: 8 | M18: =J18*K18*L18 -> 1600 | O18: =M18*30 -> 48000 | P18: =O18/$B$4 -> 0.004482818198
I19: 难度3 | J19: 2 | K19: 100 | L19: 12 | M19: 2400 | O19: 72000 | P19: 0.006724227298
I20: 难度4 | J20: 2 | K20: 100 | L20: 16 | M20: 3200 | O20: 96000 | P20: 0.008965636397
I21: 难度5 | J21: 2 | K21: 100 | L21: 20 | M21: 4000 | O21: 120000 | P21: 0.0112070455
I22: 难度6 | J22: 2 | K22: 100 | L22: 25 | M22: 5000 | O22: 150000 | P22: 0.01400880687
